[Event "Titled Tuesday Blitz March 01 Late 2022"]
[White "Urazayev, Arystanbek"]
[Black "Gutenev, Alexander"]
[WhiteFideId "13709810"]
[BlackFideId "4195540"]
[WhiteElo "2321"]
[BlackElo "2403"]
[Result "0-1"]
[Round "07"]
[TimeControl "180+1"]
[Date "2022.03.01"]
[WhiteClock "0:00:02"]
[BlackClock "0:01:05"]

1. d4 {[%clk 0:03:00]}  Nf6 {[%clk 0:02:59]} 2. c4 {[%clk 0:03:01]}  b6 {[%clk 0:02:58]} 3. Nc3 {[%clk 0:03:00]}  Bb7 {[%clk 0:02:59]} 4. Nf3 {[%clk 0:02:58]}  g6 {[%clk 0:02:59]} 5. g3 {[%clk 0:02:56]}  Bg7 {[%clk 0:02:58]} 6. Bg2 {[%clk 0:02:57]}  Ne4 {[%clk 0:02:59]} 7. Nxe4 {[%clk 0:02:54]}  Bxe4 {[%clk 0:03:00]} 8. O-O {[%clk 0:02:52]}  O-O {[%clk 0:03:00]} 9. Qb3 {[%clk 0:02:41]}  Nc6 {[%clk 0:02:56]} 10. e3 {[%clk 0:02:31]}  Na5 {[%clk 0:02:56]} 11. Qa4 {[%clk 0:02:19]}  c5 {[%clk 0:02:55]} 12. Rd1 {[%clk 0:02:08]}  d6 {[%clk 0:02:55]} 13. Bd2 {[%clk 0:01:55]}  Rc8 {[%clk 0:02:44]} 14. dxc5 {[%clk 0:01:52]}  Rxc5 {[%clk 0:02:40]} 15. b3 {[%clk 0:01:47]}  Bxa1 {[%clk 0:02:36]} 16. Rxa1 {[%clk 0:01:48]}  d5 {[%clk 0:02:30]} 17. Bb4 {[%clk 0:01:43]}  Rc7 {[%clk 0:02:25]} 18. Bxa5 {[%clk 0:01:36]}  bxa5 {[%clk 0:02:24]} 19. Rd1 {[%clk 0:01:35]}  e6 {[%clk 0:02:15]} 20. Qxa5 {[%clk 0:01:28]}  Rd7 {[%clk 0:02:15]} 21. Qxd8 {[%clk 0:01:28]}  Rfxd8 {[%clk 0:02:14]} 22. c5 {[%clk 0:01:28]}  Rc8 {[%clk 0:02:12]} 23. b4 {[%clk 0:01:27]}  Rb7 {[%clk 0:02:11]} 24. a3 {[%clk 0:01:09]}  a5 {[%clk 0:02:11]} 25. Rd4 {[%clk 0:00:54]}  axb4 {[%clk 0:02:05]} 26. axb4 {[%clk 0:00:55]}  Rxc5 {[%clk 0:01:52]} 27. bxc5 {[%clk 0:00:37]}  Rb1+ {[%clk 0:01:52]} 28. Bf1 {[%clk 0:00:33]}  Bxf3 {[%clk 0:01:51]} 29. Rd2 {[%clk 0:00:28]}  Kf8 {[%clk 0:01:50]} 30. Rc2 {[%clk 0:00:25]}  Ke7 {[%clk 0:01:49]} 31. c6 {[%clk 0:00:25]}  Kd8 {[%clk 0:01:46]} 32. c7+ {[%clk 0:00:24]}  Kc8 {[%clk 0:01:46]} 33. h3 {[%clk 0:00:24]}  e5 {[%clk 0:01:42]} 34. g4 {[%clk 0:00:22]}  f5 {[%clk 0:01:42]} 35. gxf5 {[%clk 0:00:20]}  gxf5 {[%clk 0:01:43]} 36. h4 {[%clk 0:00:17]}  h5 {[%clk 0:01:42]} 37. Rc5 {[%clk 0:00:08]}  f4 {[%clk 0:01:37]} 38. exf4 {[%clk 0:00:06]}  exf4 {[%clk 0:01:38]} 39. Rc2 {[%clk 0:00:05]}  Rd1 {[%clk 0:01:22]} 40. Rb2 {[%clk 0:00:03]}  Kxc7 {[%clk 0:01:21]} 41. Rc2+ {[%clk 0:00:03]}  Kd6 {[%clk 0:01:20]} 42. Rb2 {[%clk 0:00:03]}  Be4 {[%clk 0:01:15]} 43. Rb3 {[%clk 0:00:01]}  f3 {[%clk 0:01:11]} 44. Re3 {[%clk 0:00:01]}  Ke5 {[%clk 0:01:09]} 45. Ra3 {[%clk 0:00:01]}  Kf4 {[%clk 0:01:09]} 46. Ra8 {[%clk 0:00:01]}  Bd3 {[%clk 0:01:08]} 47. Rf8+ {[%clk 0:00:01]}  Ke4 {[%clk 0:01:07]} 48. Re8+ {[%clk 0:00:01]}  Kd4 {[%clk 0:01:07]} 49. Kh2 {[%clk 0:00:02]}  Rxf1 {[%clk 0:01:07]} 50. Kg3 {[%clk 0:00:03]}  Be4 {[%clk 0:01:06]} 51. Ra8 {[%clk 0:00:02]}  Rg1+ {[%clk 0:01:06]} 52. Kf4 {[%clk 0:00:02]}  Rg4# {[%clk 0:01:05]} 0-1


[Site "https://www.chess.com"]

[Event "Titled Tuesday Blitz March 01 Late 2022"]
[White "Vargas Pereda, Jesus Manue"]
[Black "Rudykh, Stepan"]
[WhiteFideId "5115710"]
[BlackFideId "4180321"]
[WhiteElo "1774"]
[BlackElo "2119"]
[Result "0-1"]
[Round "07"]
[TimeControl "180+1"]
[Date "2022.03.02"]
[WhiteClock "0:00:16"]
[BlackClock "0:00:21"]

1. d4 {[%clk 0:03:00]}  e6 {[%clk 0:03:00]} 2. Bf4 {[%clk 0:02:56]}  f5 {[%clk 0:03:00]} 3. e3 {[%clk 0:02:51]}  Nf6 {[%clk 0:03:00]} 4. Nf3 {[%clk 0:02:51]}  Be7 {[%clk 0:02:59]} 5. g3 {[%clk 0:02:47]}  O-O {[%clk 0:02:58]} 6. Bg2 {[%clk 0:02:46]}  d6 {[%clk 0:02:56]} 7. h4 {[%clk 0:02:46]}  Ne4 {[%clk 0:02:52]} 8. Nbd2 {[%clk 0:02:45]}  Bf6 {[%clk 0:02:46]} 9. Ng5 {[%clk 0:02:35]}  Nxd2 {[%clk 0:02:40]} 10. Qxd2 {[%clk 0:02:33]}  e5 {[%clk 0:02:39]} 11. Bd5+ {[%clk 0:02:24]}  Kh8 {[%clk 0:02:38]} 12. Nf7+ {[%clk 0:02:23]}  Rxf7 {[%clk 0:02:38]} 13. Bxf7 {[%clk 0:02:23]}  exf4 {[%clk 0:02:37]} 14. gxf4 {[%clk 0:02:23]}  Qe7 {[%clk 0:02:30]} 15. Bb3 {[%clk 0:02:17]}  a5 {[%clk 0:02:25]} 16. a3 {[%clk 0:02:16]}  a4 {[%clk 0:02:13]} 17. Ba2 {[%clk 0:02:15]}  Nc6 {[%clk 0:02:11]} 18. O-O-O {[%clk 0:02:14]}  b5 {[%clk 0:02:08]} 19. Qe2 {[%clk 0:02:13]}  Nxd4 {[%clk 0:02:03]} 20. Qf1 {[%clk 0:01:59]}  Ne6 {[%clk 0:01:36]} 21. Qxb5 {[%clk 0:01:57]}  Bd7 {[%clk 0:01:29]} 22. Qb7 {[%clk 0:01:54]}  Qd8 {[%clk 0:01:28]} 23. c3 {[%clk 0:01:40]}  Rb8 {[%clk 0:01:23]} 24. Qf3 {[%clk 0:01:37]}  Qe8 {[%clk 0:01:18]} 25. h5 {[%clk 0:01:27]}  Nc5 {[%clk 0:01:14]} 26. h6 {[%clk 0:01:24]}  g6 {[%clk 0:01:14]} 27. Bd5 {[%clk 0:01:14]}  c6 {[%clk 0:01:08]} 28. Ba2 {[%clk 0:01:10]}  d5 {[%clk 0:01:06]} 29. Qe2 {[%clk 0:00:57]}  Bc8 {[%clk 0:01:04]} 30. f3 {[%clk 0:00:57]}  Ba6 {[%clk 0:01:03]} 31. Qf2 {[%clk 0:00:55]}  Nd3+ {[%clk 0:01:01]} 32. Rxd3 {[%clk 0:00:53]}  Bxd3 {[%clk 0:01:02]} 33. Qd2 {[%clk 0:00:52]}  Ba6 {[%clk 0:01:00]} 34. Re1 {[%clk 0:00:38]}  Qf8 {[%clk 0:00:58]} 35. e4 {[%clk 0:00:35]}  fxe4 {[%clk 0:00:53]} 36. fxe4 {[%clk 0:00:35]}  dxe4 {[%clk 0:00:53]} 37. Rxe4 {[%clk 0:00:32]}  Rd8 {[%clk 0:00:51]} 38. Qe1 {[%clk 0:00:31]}  Bd3 {[%clk 0:00:45]} 39. Re6 {[%clk 0:00:29]}  Bf5 {[%clk 0:00:42]} 40. Rxc6 {[%clk 0:00:28]}  Qxh6 {[%clk 0:00:22]} 41. Qe3 {[%clk 0:00:16]}  Qh1+ {[%clk 0:00:21]} 0-1


[Site "https://www.chess.com"]

[Event "Titled Tuesday Blitz March 01 Late 2022"]
[White "Voit, Daria"]
[Black "Maze, Sebastien"]
[WhiteFideId "4182146"]
[BlackFideId "613762"]
[WhiteElo "2323"]
[BlackElo "2462"]
[Result "1-0"]
[Round "07"]
[TimeControl "180+1"]
[Date "2022.03.01"]
[WhiteClock "0:00:06"]
[BlackClock "0:00:05"]

1. Nf3 {[%clk 0:03:00]}  Nf6 {[%clk 0:02:59]} 2. c4 {[%clk 0:02:59]}  Nc6 {[%clk 0:02:57]} 3. g3 {[%clk 0:02:56]}  e5 {[%clk 0:02:56]} 4. Bg2 {[%clk 0:02:56]}  Bc5 {[%clk 0:02:52]} 5. Nc3 {[%clk 0:02:51]}  d6 {[%clk 0:02:51]} 6. O-O {[%clk 0:02:46]}  a5 {[%clk 0:02:51]} 7. e3 {[%clk 0:02:45]}  O-O {[%clk 0:02:43]} 8. d4 {[%clk 0:02:45]}  Ba7 {[%clk 0:02:41]} 9. dxe5 {[%clk 0:02:40]}  dxe5 {[%clk 0:02:37]} 10. Qc2 {[%clk 0:02:29]}  h6 {[%clk 0:02:21]} 11. Rd1 {[%clk 0:02:26]}  Bd7 {[%clk 0:02:11]} 12. Nd5 {[%clk 0:02:19]}  Be6 {[%clk 0:01:39]} 13. Nb6 {[%clk 0:02:08]}  Bxb6 {[%clk 0:01:39]} 14. Rxd8 {[%clk 0:02:07]}  Rfxd8 {[%clk 0:01:38]} 15. a3 {[%clk 0:01:59]}  a4 {[%clk 0:01:35]} 16. Bd2 {[%clk 0:01:52]}  Nd7 {[%clk 0:01:35]} 17. Bf1 {[%clk 0:01:39]}  Nc5 {[%clk 0:01:27]} 18. Bc3 {[%clk 0:01:37]}  e4 {[%clk 0:01:15]} 19. Nd2 {[%clk 0:01:28]}  Bf5 {[%clk 0:00:57]} 20. Rd1 {[%clk 0:01:23]}  Bg4 {[%clk 0:00:45]} 21. Rb1 {[%clk 0:01:11]}  Re8 {[%clk 0:00:44]} 22. Bg2 {[%clk 0:01:03]}  Be2 {[%clk 0:00:37]} 23. Re1 {[%clk 0:00:46]}  Bd3 {[%clk 0:00:35]} 24. Qd1 {[%clk 0:00:47]}  Ba5 {[%clk 0:00:34]} 25. Bxa5 {[%clk 0:00:34]}  Rxa5 {[%clk 0:00:33]} 26. Qg4 {[%clk 0:00:31]}  Ne5 {[%clk 0:00:32]} 27. Qf5 {[%clk 0:00:28]}  Ne6 {[%clk 0:00:21]} 28. Bxe4 {[%clk 0:00:23]}  g6 {[%clk 0:00:15]} 29. Qh3 {[%clk 0:00:21]}  Ng5 {[%clk 0:00:14]} 30. Qg2 {[%clk 0:00:18]}  Bxe4 {[%clk 0:00:13]} 31. Nxe4 {[%clk 0:00:18]}  Ngf3+ {[%clk 0:00:13]} 32. Kh1 {[%clk 0:00:19]}  Nxe1 {[%clk 0:00:13]} 33. Nf6+ {[%clk 0:00:19]}  Kf8 {[%clk 0:00:12]} 34. Qxb7 {[%clk 0:00:18]}  N1f3 {[%clk 0:00:09]} 35. Nxe8 {[%clk 0:00:17]}  Kxe8 {[%clk 0:00:09]} 36. Qxc7 {[%clk 0:00:17]}  Ra8 {[%clk 0:00:09]} 37. c5 {[%clk 0:00:16]}  Rd8 {[%clk 0:00:08]} 38. Kg2 {[%clk 0:00:15]}  g5 {[%clk 0:00:08]} 39. g4 {[%clk 0:00:14]}  h5 {[%clk 0:00:08]} 40. gxh5 {[%clk 0:00:11]}  g4 {[%clk 0:00:08]} 41. Kg3 {[%clk 0:00:11]}  Rd1 {[%clk 0:00:08]} 42. h6 {[%clk 0:00:11]}  Nd3 {[%clk 0:00:07]} 43. Qc8+ {[%clk 0:00:10]}  Ke7 {[%clk 0:00:07]} 44. Qc7+ {[%clk 0:00:10]}  Kf6 {[%clk 0:00:06]} 45. Qd8+ {[%clk 0:00:09]}  Kg6 {[%clk 0:00:06]} 46. Qg8+ {[%clk 0:00:07]}  Kxh6 {[%clk 0:00:06]} 47. Qh8+ {[%clk 0:00:05]}  Kg6 {[%clk 0:00:07]} 48. Kxg4 {[%clk 0:00:05]}  Nfe5+ {[%clk 0:00:06]} 49. Kh3 {[%clk 0:00:05]}  Rd2 {[%clk 0:00:04]} 50. f4 {[%clk 0:00:05]}  Nf2+ {[%clk 0:00:04]} 51. Kh4 {[%clk 0:00:05]}  Nf3+ {[%clk 0:00:03]} 52. Kg3 {[%clk 0:00:05]}  Ng1 {[%clk 0:00:03]} 53. Qg8+ {[%clk 0:00:06]}  Kf5 {[%clk 0:00:03]} 54. Qxf7+ {[%clk 0:00:05]}  Ke4 {[%clk 0:00:03]} 55. Qe6+ {[%clk 0:00:06]}  Kd3 {[%clk 0:00:04]} 56. Qd5+ {[%clk 0:00:06]}  Kxe3 {[%clk 0:00:04]} 57. Qxd2+ {[%clk 0:00:06]}  Kxd2 {[%clk 0:00:04]} 58. Kxf2 {[%clk 0:00:07]}  Ne2 {[%clk 0:00:04]} 59. f5 {[%clk 0:00:06]}  Nd4 {[%clk 0:00:04]} 60. f6 {[%clk 0:00:06]}  Ne6 {[%clk 0:00:04]} 61. c6 {[%clk 0:00:06]}  Kc2 {[%clk 0:00:04]} 62. f7 {[%clk 0:00:07]}  Ng5 {[%clk 0:00:04]} 63. f8=Q {[%clk 0:00:06]}  Ne4+ {[%clk 0:00:05]} 64. Ke3 {[%clk 0:00:06]} 1-0


[Site "https://www.chess.com"]

[Event "Titled Tuesday Blitz March 01 Late 2022"]
[White "Yordanov, Nikolay Plamenov"]
[Black "Astasio Lopez, David"]
[WhiteFideId "2907445"]
[BlackFideId "2230208"]
[WhiteElo "2417"]
[BlackElo "2547"]
[Result "0-1"]
[Round "07"]
[TimeControl "180+1"]
[Date "2022.03.02"]
[WhiteClock "0:00:16"]
[BlackClock "0:00:17"]

1. d4 {[%clk 0:03:00]}  d5 {[%clk 0:02:59]} 2. Bf4 {[%clk 0:02:54]}  c5 {[%clk 0:02:58]} 3. e3 {[%clk 0:02:50]}  e6 {[%clk 0:02:57]} 4. c3 {[%clk 0:02:49]}  Bd6 {[%clk 0:02:57]} 5. Bg3 {[%clk 0:02:48]}  Qc7 {[%clk 0:02:55]} 6. Nf3 {[%clk 0:02:48]}  Nf6 {[%clk 0:02:53]} 7. Nbd2 {[%clk 0:02:49]}  Nbd7 {[%clk 0:02:52]} 8. Bd3 {[%clk 0:02:47]}  b6 {[%clk 0:02:50]} 9. O-O {[%clk 0:02:46]}  Bb7 {[%clk 0:02:50]} 10. Re1 {[%clk 0:02:41]}  Ne4 {[%clk 0:02:48]} 11. dxc5 {[%clk 0:02:35]}  bxc5 {[%clk 0:02:37]} 12. Bb5 {[%clk 0:02:15]}  Nxg3 {[%clk 0:02:31]} 13. hxg3 {[%clk 0:02:15]}  O-O {[%clk 0:02:31]} 14. e4 {[%clk 0:02:12]}  Rab8 {[%clk 0:02:15]} 15. exd5 {[%clk 0:02:09]}  exd5 {[%clk 0:02:12]} 16. Bd3 {[%clk 0:02:01]}  Nf6 {[%clk 0:02:05]} 17. Qc2 {[%clk 0:01:56]}  g6 {[%clk 0:01:57]} 18. Re2 {[%clk 0:01:55]}  c4 {[%clk 0:01:50]} 19. Bxg6 {[%clk 0:01:41]}  hxg6 {[%clk 0:01:46]} 20. Nd4 {[%clk 0:01:41]}  Bc8 {[%clk 0:01:37]} 21. Rae1 {[%clk 0:01:38]}  Kg7 {[%clk 0:01:37]} 22. N2f3 {[%clk 0:01:14]}  Bg4 {[%clk 0:01:35]} 23. Qc1 {[%clk 0:01:10]}  Bxf3 {[%clk 0:01:31]} 24. gxf3 {[%clk 0:01:09]}  Bc5 {[%clk 0:01:25]} 25. Qd2 {[%clk 0:01:02]}  Qd7 {[%clk 0:01:17]} 26. Kg2 {[%clk 0:01:01]}  Rfe8 {[%clk 0:01:08]} 27. Qf4 {[%clk 0:00:39]}  Rxe2 {[%clk 0:00:53]} 28. Rxe2 {[%clk 0:00:40]}  Bxd4 {[%clk 0:00:53]} 29. Qxd4 {[%clk 0:00:40]}  Rd8 {[%clk 0:00:42]} 30. g4 {[%clk 0:00:39]}  g5 {[%clk 0:00:36]} 31. Re5 {[%clk 0:00:37]}  Kg6 {[%clk 0:00:33]} 32. Rf5 {[%clk 0:00:37]}  Qe6 {[%clk 0:00:29]} 33. Qd2 {[%clk 0:00:35]}  Nh7 {[%clk 0:00:26]} 34. Qd4 {[%clk 0:00:32]}  Rd7 {[%clk 0:00:21]} 35. Qc5 {[%clk 0:00:31]}  f6 {[%clk 0:00:21]} 36. Qc8 {[%clk 0:00:29]}  Re7 {[%clk 0:00:18]} 37. Qb8 {[%clk 0:00:27]}  Rd7 {[%clk 0:00:16]} 38. Qh2 {[%clk 0:00:26]}  Kg7 {[%clk 0:00:16]} 39. Qb8 {[%clk 0:00:24]}  Nf8 {[%clk 0:00:17]} 40. b3 {[%clk 0:00:19]}  Ng6 {[%clk 0:00:17]} 41. bxc4 {[%clk 0:00:17]}  Nh4+ {[%clk 0:00:17]} 42. Kh3 {[%clk 0:00:15]}  Nxf5 {[%clk 0:00:17]} 43. gxf5 {[%clk 0:00:15]}  Qxf5+ {[%clk 0:00:18]} 44. Kg3 {[%clk 0:00:16]}  Qe5+ {[%clk 0:00:17]} 45. Qxe5 {[%clk 0:00:16]} 0-1


[Site "https://www.chess.com"]

[Event "Titled Tuesday Blitz March 01 Late 2022"]
[White "Zhurbinsky, David"]
[Black "Novikova, Galina"]
[WhiteFideId "2072904"]
[BlackFideId "4157095"]
[WhiteElo "2516"]
[BlackElo "1863"]
[Result "1-0"]
[Round "07"]
[TimeControl "180+1"]
[Date "2022.03.02"]
[WhiteClock "0:00:09"]
[BlackClock "0:00:04"]

1. e4 {[%clk 0:03:00]}  e6 {[%clk 0:03:00]} 2. d4 {[%clk 0:03:00]}  d5 {[%clk 0:03:01]} 3. Nc3 {[%clk 0:03:00]}  Bb4 {[%clk 0:03:00]} 4. e5 {[%clk 0:02:59]}  c5 {[%clk 0:03:00]} 5. a3 {[%clk 0:02:59]}  Bxc3+ {[%clk 0:03:01]} 6. bxc3 {[%clk 0:02:59]}  Ne7 {[%clk 0:03:01]} 7. Nf3 {[%clk 0:02:57]}  Bd7 {[%clk 0:03:00]} 8. Bd3 {[%clk 0:02:54]}  c4 {[%clk 0:03:00]} 9. Be2 {[%clk 0:02:54]}  Ba4 {[%clk 0:03:01]} 10. O-O {[%clk 0:02:51]}  Nbc6 {[%clk 0:03:00]} 11. Rb1 {[%clk 0:02:45]}  b6 {[%clk 0:03:00]} 12. Bg5 {[%clk 0:02:41]}  h6 {[%clk 0:03:00]} 13. Bh4 {[%clk 0:02:41]}  g5 {[%clk 0:03:00]} 14. Bg3 {[%clk 0:02:42]}  Kd7 {[%clk 0:02:59]} 15. Nd2 {[%clk 0:02:31]}  Qg8 {[%clk 0:02:46]} 16. f4 {[%clk 0:02:16]}  Nf5 {[%clk 0:02:46]} 17. Bxc4 {[%clk 0:02:01]}  Ne3 {[%clk 0:02:36]} 18. Qf3 {[%clk 0:01:58]}  Nxf1 {[%clk 0:02:33]} 19. Bxf1 {[%clk 0:01:55]}  Bxc2 {[%clk 0:02:31]} 20. Rc1 {[%clk 0:01:52]}  gxf4 {[%clk 0:02:23]} 21. Bxf4 {[%clk 0:01:47]}  Qg6 {[%clk 0:02:11]} 22. Bb5 {[%clk 0:01:44]}  Kc7 {[%clk 0:02:05]} 23. Bxc6 {[%clk 0:01:34]}  Kxc6 {[%clk 0:02:01]} 24. c4 {[%clk 0:01:33]}  Qd3 {[%clk 0:01:11]} 25. cxd5+ {[%clk 0:01:25]}  Kb7 {[%clk 0:01:11]} 26. dxe6+ {[%clk 0:01:10]}  Qxf3 {[%clk 0:01:10]} 27. Nxf3 {[%clk 0:01:06]}  Be4 {[%clk 0:01:07]} 28. exf7 {[%clk 0:00:54]}  Bd5 {[%clk 0:01:07]} 29. Nd2 {[%clk 0:00:44]}  Bxf7 {[%clk 0:01:06]} 30. Ne4 {[%clk 0:00:44]}  Bd5 {[%clk 0:01:02]} 31. Nd6+ {[%clk 0:00:40]}  Ka6 {[%clk 0:01:03]} 32. Rc7 {[%clk 0:00:32]}  Rhg8 {[%clk 0:00:59]} 33. g3 {[%clk 0:00:30]}  h5 {[%clk 0:01:00]} 34. h4 {[%clk 0:00:26]}  Raf8 {[%clk 0:00:57]} 35. Kf2 {[%clk 0:00:25]}  b5 {[%clk 0:00:28]} 36. Ke3 {[%clk 0:00:17]}  Kb6 {[%clk 0:00:28]} 37. Re7 {[%clk 0:00:15]}  a5 {[%clk 0:00:26]} 38. Rh7 {[%clk 0:00:02]}  b4 {[%clk 0:00:26]} 39. axb4 {[%clk 0:00:02]}  a4 {[%clk 0:00:27]} 40. Rh6 {[%clk 0:00:03]}  Ka7 {[%clk 0:00:21]} 41. Nb5+ {[%clk 0:00:03]}  Kb8 {[%clk 0:00:20]} 42. Rb6+ {[%clk 0:00:02]}  Kc8 {[%clk 0:00:20]} 43. Ra6 {[%clk 0:00:03]}  Bb3 {[%clk 0:00:19]} 44. e6 {[%clk 0:00:03]}  Re8 {[%clk 0:00:18]} 45. Nd6+ {[%clk 0:00:03]}  Kd8 {[%clk 0:00:17]} 46. Ra8+ {[%clk 0:00:03]}  Ke7 {[%clk 0:00:16]} 47. Nxe8 {[%clk 0:00:03]}  Rxe8 {[%clk 0:00:17]} 48. Bg5+ {[%clk 0:00:03]}  Kf8 {[%clk 0:00:17]} 49. Rxe8+ {[%clk 0:00:04]}  Kxe8 {[%clk 0:00:18]} 50. Kd2 {[%clk 0:00:04]}  Bxe6 {[%clk 0:00:18]} 51. Kc3 {[%clk 0:00:05]}  Bb3 {[%clk 0:00:18]} 52. b5 {[%clk 0:00:04]}  Kd7 {[%clk 0:00:18]} 53. Kb4 {[%clk 0:00:04]}  Kc7 {[%clk 0:00:18]} 54. Bf4+ {[%clk 0:00:04]}  Kb6 {[%clk 0:00:18]} 55. Be5 {[%clk 0:00:03]}  Bd1 {[%clk 0:00:13]} 56. Bd6 {[%clk 0:00:03]}  Bc2 {[%clk 0:00:11]} 57. d5 {[%clk 0:00:03]}  Bb3 {[%clk 0:00:11]} 58. Bc5+ {[%clk 0:00:04]}  Kc7 {[%clk 0:00:10]} 59. d6+ {[%clk 0:00:05]}  Kd7 {[%clk 0:00:09]} 60. Ka5 {[%clk 0:00:05]}  Bd1 {[%clk 0:00:05]} 61. Kb6 {[%clk 0:00:05]}  Bc2 {[%clk 0:00:05]} 62. Ka7 {[%clk 0:00:05]}  Be4 {[%clk 0:00:04]} 63. b6 {[%clk 0:00:05]}  Kc8 {[%clk 0:00:04]} 64. d7+ {[%clk 0:00:02]}  Kxd7 {[%clk 0:00:04]} 65. b7 {[%clk 0:00:03]}  Bxb7 {[%clk 0:00:04]} 66. Kxb7 {[%clk 0:00:04]}  Ke6 {[%clk 0:00:02]} 67. Kc6 {[%clk 0:00:05]}  Kf5 {[%clk 0:00:02]} 68. Kd5 {[%clk 0:00:05]}  a3 {[%clk 0:00:01]} 69. Bxa3 {[%clk 0:00:05]}  Kg4 {[%clk 0:00:02]} 70. Bd6 {[%clk 0:00:06]}  Kf3 {[%clk 0:00:02]} 71. Bf4 {[%clk 0:00:07]}  Kg2 {[%clk 0:00:03]} 72. Ke6 {[%clk 0:00:08]}  Kh3 {[%clk 0:00:04]} 73. Kf5 {[%clk 0:00:09]} 1-0


[Site "https://www.chess.com"]

[Event "Titled Tuesday Blitz March 01 Late 2022"]
[White "Abdrlauf, Elham"]
[Black "Seo, Jung Min"]
[WhiteFideId "1533533"]
[BlackFideId "1734687"]
[WhiteElo "2334"]
[BlackElo "2401"]
[Result "1-0"]
[Round "08"]
[TimeControl "180+1"]
[Date "2022.03.01"]
[WhiteClock "0:01:08"]
[BlackClock "0:00:47"]

1. e4 {[%clk 0:02:59]}  e5 {[%clk 0:02:59]} 2. Nc3 {[%clk 0:03:00]}  Nc6 {[%clk 0:02:59]} 3. Bc4 {[%clk 0:02:59]}  Nf6 {[%clk 0:02:58]} 4. d3 {[%clk 0:03:00]}  Bb4 {[%clk 0:02:56]} 5. Nf3 {[%clk 0:03:00]}  d5 {[%clk 0:02:52]} 6. exd5 {[%clk 0:03:01]}  Nxd5 {[%clk 0:02:52]} 7. O-O {[%clk 0:03:01]}  Nxc3 {[%clk 0:02:46]} 8. bxc3 {[%clk 0:03:02]}  Bxc3 {[%clk 0:02:45]} 9. Ng5 {[%clk 0:03:03]}  Rf8 {[%clk 0:02:22]} 10. Qh5 {[%clk 0:02:53]}  Qe7 {[%clk 0:02:16]} 11. Rb1 {[%clk 0:02:31]}  h6 {[%clk 0:02:14]} 12. Ne4 {[%clk 0:02:21]}  Bd4 {[%clk 0:02:09]} 13. Rb3 {[%clk 0:02:07]}  Qd7 {[%clk 0:01:46]} 14. Bxh6 {[%clk 0:01:42]}  Rh8 {[%clk 0:01:46]} 15. Qg5 {[%clk 0:01:43]}  Rxh6 {[%clk 0:01:41]} 16. Qxg7 {[%clk 0:01:43]}  Rg6 {[%clk 0:01:36]} 17. Nf6+ {[%clk 0:01:24]}  Rxf6 {[%clk 0:01:35]} 18. Qxf6 {[%clk 0:01:25]}  Qe7 {[%clk 0:01:33]} 19. Qh8+ {[%clk 0:01:22]}  Qf8 {[%clk 0:01:32]} 20. Qh5 {[%clk 0:01:18]}  Bb6 {[%clk 0:01:20]} 21. Bb5 {[%clk 0:01:16]}  Bd7 {[%clk 0:01:10]} 22. Bxc6 {[%clk 0:01:15]}  Bxc6 {[%clk 0:01:11]} 23. Qxe5+ {[%clk 0:01:16]}  Kd7 {[%clk 0:01:08]} 24. Qf5+ {[%clk 0:01:15]}  Kd6 {[%clk 0:01:03]} 25. d4 {[%clk 0:01:08]}  Qg7 {[%clk 0:00:57]} 26. Rg3 {[%clk 0:01:09]}  Qxd4 {[%clk 0:00:47]} 27. Rd3 {[%clk 0:01:08]} 1-0


[Site "https://www.chess.com"]

[Event "Titled Tuesday Blitz March 01 Late 2022"]
[White "Adewumi, Tanitoluwa"]
[Black "Weetik, Vjacheslav"]
[WhiteFideId "30966396"]
[BlackFideId "4153472"]
[WhiteElo "2545"]
[BlackElo "2469"]
[Result "1/2-1/2"]
[Round "08"]
[TimeControl "180+1"]
[Date "2022.03.01"]
[WhiteClock "0:00:06"]
[BlackClock "0:00:07"]

1. Nf3 {[%clk 0:02:58]}  Nf6 {[%clk 0:02:59]} 2. d4 {[%clk 0:02:52]}  g6 {[%clk 0:02:58]} 3. c4 {[%clk 0:02:43]}  Bg7 {[%clk 0:02:58]} 4. Nc3 {[%clk 0:02:44]}  d6 {[%clk 0:02:58]} 5. e4 {[%clk 0:02:42]}  O-O {[%clk 0:02:57]} 6. Be2 {[%clk 0:02:43]}  e5 {[%clk 0:02:57]} 7. dxe5 {[%clk 0:02:41]}  dxe5 {[%clk 0:02:57]} 8. Qxd8 {[%clk 0:02:42]}  Rxd8 {[%clk 0:02:58]} 9. Bg5 {[%clk 0:02:33]}  Re8 {[%clk 0:02:58]} 10. Nd5 {[%clk 0:02:30]}  Nxd5 {[%clk 0:02:58]} 11. cxd5 {[%clk 0:02:29]}  c6 {[%clk 0:02:58]} 12. Bc4 {[%clk 0:02:25]}  cxd5 {[%clk 0:02:49]} 13. Bxd5 {[%clk 0:02:22]}  Nd7 {[%clk 0:02:47]} 14. Nd2 {[%clk 0:02:19]}  Nb6 {[%clk 0:02:39]} 15. Bb3 {[%clk 0:02:16]}  Be6 {[%clk 0:02:37]} 16. Ke2 {[%clk 0:02:14]}  Bf8 {[%clk 0:02:19]} 17. Rhc1 {[%clk 0:02:09]}  Bxb3 {[%clk 0:02:03]} 18. axb3 {[%clk 0:01:57]}  Rec8 {[%clk 0:01:46]} 19. Rxc8 {[%clk 0:01:40]}  Nxc8 {[%clk 0:01:45]} 20. Nc4 {[%clk 0:01:38]}  Nd6 {[%clk 0:01:30]} 21. Nxd6 {[%clk 0:01:32]}  Bxd6 {[%clk 0:01:30]} 22. Be3 {[%clk 0:01:32]}  a6 {[%clk 0:01:20]} 23. Rd1 {[%clk 0:01:26]}  Bb4 {[%clk 0:01:11]} 24. Rd7 {[%clk 0:01:23]}  b5 {[%clk 0:01:10]} 25. Rc7 {[%clk 0:01:13]}  Kg7 {[%clk 0:00:51]} 26. f3 {[%clk 0:01:12]}  Rd8 {[%clk 0:00:40]} 27. Ra7 {[%clk 0:01:07]}  Rd6 {[%clk 0:00:37]} 28. Rb7 {[%clk 0:01:03]}  h6 {[%clk 0:00:34]} 29. Rc7 {[%clk 0:01:02]}  Re6 {[%clk 0:00:28]} 30. h3 {[%clk 0:00:53]}  Ba5 {[%clk 0:00:26]} 31. Rb7 {[%clk 0:00:43]}  Rc6 {[%clk 0:00:26]} 32. Kd3 {[%clk 0:00:41]}  h5 {[%clk 0:00:25]} 33. g4 {[%clk 0:00:38]}  hxg4 {[%clk 0:00:24]} 34. hxg4 {[%clk 0:00:39]}  Rd6+ {[%clk 0:00:22]} 35. Ke2 {[%clk 0:00:38]}  Rc6 {[%clk 0:00:22]} 36. Kd3 {[%clk 0:00:34]}  Bb4 {[%clk 0:00:22]} 37. Rd7 {[%clk 0:00:31]}  Rd6+ {[%clk 0:00:22]} 38. Rxd6 {[%clk 0:00:31]}  Bxd6 {[%clk 0:00:22]} 39. Bg1 {[%clk 0:00:19]}  f6 {[%clk 0:00:22]} 40. Bh2 {[%clk 0:00:19]}  Kf7 {[%clk 0:00:21]} 41. Bg1 {[%clk 0:00:19]}  Ke6 {[%clk 0:00:22]} 42. Be3 {[%clk 0:00:19]}  Bb4 {[%clk 0:00:21]} 43. Bb6 {[%clk 0:00:18]}  f5 {[%clk 0:00:20]} 44. Be3 {[%clk 0:00:18]}  f4 {[%clk 0:00:12]} 45. Bf2 {[%clk 0:00:17]}  Kd6 {[%clk 0:00:12]} 46. Bh4 {[%clk 0:00:15]}  Ke6 {[%clk 0:00:11]} 47. Bd8 {[%clk 0:00:15]}  Bc5 {[%clk 0:00:10]} 48. Ba5 {[%clk 0:00:14]}  Bd4 {[%clk 0:00:09]} 49. Bc3 {[%clk 0:00:13]}  Bxc3 {[%clk 0:00:03]} 50. bxc3 {[%clk 0:00:04]}  Kd6 {[%clk 0:00:03]} 51. b4 {[%clk 0:00:03]}  Kc6 {[%clk 0:00:04]} 52. Kc2 {[%clk 0:00:04]}  Kb6 {[%clk 0:00:04]} 53. g5 {[%clk 0:00:04]}  a5 {[%clk 0:00:04]} 54. bxa5+ {[%clk 0:00:05]}  Kxa5 {[%clk 0:00:04]} 55. Kb3 {[%clk 0:00:05]}  Ka6 {[%clk 0:00:03]} 56. Ka3 {[%clk 0:00:06]}  Ka5 {[%clk 0:00:04]} 57. Kb3 {[%clk 0:00:04]}  Ka6 {[%clk 0:00:04]} 58. Kb4 {[%clk 0:00:04]}  Kb6 {[%clk 0:00:04]} 59. Ka3 {[%clk 0:00:04]}  Kc5 {[%clk 0:00:05]} 60. Kb3 {[%clk 0:00:05]}  Kc6 {[%clk 0:00:05]} 61. c4 {[%clk 0:00:05]}  Kc5 {[%clk 0:00:05]} 62. cxb5 {[%clk 0:00:05]}  Kxb5 {[%clk 0:00:06]} 63. Kb2 {[%clk 0:00:04]}  Kc4 {[%clk 0:00:07]} 64. Kc2 {[%clk 0:00:05]}  Kd4 {[%clk 0:00:07]} 65. Kd2 {[%clk 0:00:05]}  Kc4 {[%clk 0:00:08]} 66. Kc2 {[%clk 0:00:06]}  Kb4 {[%clk 0:00:08]} 67. Kb2 {[%clk 0:00:06]}  Kc4 {[%clk 0:00:07]} 68. Kc2 {[%clk 0:00:06]} 1/2-1/2


[Site "https://www.chess.com"]